fUST/lending_fUST_20251102
["ID","MTS","AMOUNT","RATE_DAILY","PERIOD"]
[392848887,1762054808757,861.04423316,0.00037986,120]
[392848890,1762054822134,1190.93876225,0.00024139,2]
[392848892,1762054865163,1000.0,0.00032876,120]
[392848990,1762055087010,1000.0,0.00024,5]
[392849136,1762055146179,161.0,0.000328,120]
[392849137,1762055147202,365.357281,0.000235,2]
[392849142,1762055160228,161.0,0.000328,120]
[392849148,1762055208125,161.0,0.00024,3]
[392849156,1762055238669,161.0,0.00024,3]
[392849158,1762055246391,8312.652719,0.00023,2]
[392849159,1762055246412,10000.01,0.00023,2]
[392849160,1762055246435,10000.01,0.00023,2]
[392849161,1762055246546,10000.01,0.00023,2]
[392849162,1762055246567,10000.01,0.00023,2]
[392849163,1762055246588,10000.01,0.00023,2]
[392849165,1762055246618,38512.507281,0.00023,2]
[392849167,1762055271320,177.23312061,0.00024,3]
[392849235,1762055432851,-590.78466951,0.00024287,2]
[392849237,1762055432862,-1004.77799573,0.00024287,2]
[392849239,1762055432871,-150.0,0.00024292,2]
[392849241,1762055432880,-176.06470201,0.0002438,2]
[392849243,1762055432892,-400.76233906,0.0002439,2]
[392849245,1762055432902,-2548.86322486,0.00024391,2]
[392849250,1762055432933,-255.252714,0.00024391,2]
[392849252,1762055432943,-149.44374545,0.00024431,2]
[392849276,1762055440141,-1446.11891979,0.00024431,2]
[392849277,1762055440151,-1190.9387622,0.0002444,2]
[392849278,1762055440161,-1200.0,0.0002444,2]
[392849279,1762055440170,-300.0,0.00024441,2]
[392849280,1762055440179,-300.0,0.00024442,2]
[392849281,1762055440189,-300.0,0.00024442,2]
[392849282,1762055440198,-300.0,0.00024442,2]
[392849283,1762055440207,-300.0,0.00024442,2]
[392849284,1762055440217,-2804.11593884,0.00024443,2]
[392849285,1762055440226,-500.62098776,0.00024449,2]
[392849286,1762055440235,-179.79,0.0002446,2]
[392849287,1762055440244,-500.0,0.00024469,2]
[392849288,1762055440254,-500.0,0.00024469,2]
[392849290,1762055440264,-500.0,0.00024469,2]
[392849291,1762055440273,-500.0,0.00024469,2]
[392849292,1762055440282,-500.0,0.00024469,2]
[392849293,1762055440291,-500.0,0.00024469,2]
[392849294,1762055440300,-500.0,0.00024469,2]
[392849295,1762055440310,-500.0,0.00024469,2]
[392849296,1762055440320,-500.0,0.00024469,2]
[392849297,1762055440329,-500.0,0.00024469,2]
[392849298,1762055440339,-500.0,0.00024469,2]
[392849299,1762055440348,-500.0,0.00024469,2]
[392849300,1762055440357,-500.0,0.00024469,2]
[392849301,1762055440367,-500.0,0.00024469,2]
[392849302,1762055440376,-500.0,0.00024469,2]
[392849303,1762055440386,-500.0,0.00024469,2]
[392849304,1762055440396,-583.33211515,0.00024469,2]
[392849305,1762055440405,-500.0,0.00024469,2]
[392849306,1762055440415,-500.0,0.00024469,2]
[392849307,1762055440423,-500.0,0.00024469,2]
[392849308,1762055440433,-500.0,0.00024469,2]
[392849309,1762055440442,-500.0,0.00024469,2]
[392849310,1762055440452,-500.0,0.00024469,2]
[392849311,1762055440462,-500.0,0.00024469,2]
[392849312,1762055440471,-500.0,0.00024469,2]
[392849313,1762055440481,-488.24099423,0.00024469,2]
[392849314,1762055440490,-500.0,0.00024469,2]
[392849315,1762055440499,-500.0,0.00024469,2]
[392849316,1762055440508,-194.62657088,0.00024469,2]
[392849317,1762055440580,-305.37342912,0.00024469,2]
[392849318,1762055440589,-500.0,0.00024469,2]
[392849319,1762055440652,-500.0,0.00024469,2]
[392849320,1762055440678,-500.0,0.00024469,2]
[392849321,1762055440688,-500.0,0.00024469,2]
[392849322,1762055440697,-500.0,0.00024469,2]
[392849323,1762055440711,-500.0,0.00024469,2]
[392849324,1762055440720,-500.0,0.00024469,2]
[392849325,1762055440729,-500.0,0.00024469,2]
[392849326,1762055440740,-500.0,0.00024469,2]
[392849327,1762055440753,-500.0,0.00024469,2]
[392849328,1762055440762,-500.0,0.00024469,2]
[392849329,1762055440771,-500.0,0.00024469,2]
[392849330,1762055440780,-500.0,0.00024469,2]
[392849331,1762055440789,-500.0,0.00024469,2]
[392849332,1762055440799,-500.0,0.00024469,2]
[392849333,1762055440808,-500.0,0.00024469,2]
[392849334,1762055440817,-500.0,0.00024469,2]
[392849335,1762055440826,-500.0,0.00024469,2]
[392849336,1762055440835,-500.0,0.00024469,2]
[392849337,1762055440844,-500.0,0.00024469,2]
[392849338,1762055440853,-500.0,0.00024469,2]
[392849339,1762055440862,-500.0,0.00024469,2]
[392849340,1762055440872,-500.0,0.00024469,2]
[392849341,1762055440881,-479.92269235,0.00024469,2]
[392849342,1762055440890,-449.40806143,0.00024469,2]
[392849343,1762055440899,-500.0,0.00024469,2]
[392849344,1762055440909,-500.0,0.00024469,2]
[392849345,1762055440918,-500.0,0.00024469,2]
[392849346,1762055440927,-500.0,0.00024469,2]
[392849347,1762055440936,-500.0,0.00024469,2]
[392849348,1762055440945,-500.0,0.00024469,2]
[392849349,1762055440955,-500.0,0.00024469,2]
[392849350,1762055440965,-500.0,0.00024469,2]
[392849351,1762055440975,-500.0,0.00024469,2]
[392849352,1762055440986,-500.0,0.00024469,2]
[392849353,1762055440996,-500.0,0.00024469,2]
[392849354,1762055441006,-500.0,0.00024469,2]
[392849355,1762055441015,-500.0,0.00024469,2]
[392849356,1762055441024,-500.0,0.00024469,2]
[392849357,1762055441034,-500.0,0.00024469,2]
[392849358,1762055441045,-500.0,0.00024469,2]
[392849359,1762055441055,-500.0,0.00024469,2]
[392849360,1762055441064,-450.88239651,0.00024469,2]
[392849361,1762055441080,-49.11760349,0.00024469,2]
[392849362,1762055441090,-500.0,0.00024469,2]
[392849363,1762055441099,-500.0,0.00024469,2]
[392849364,1762055441109,-500.0,0.00024469,2]
[392849365,1762055441120,-500.0,0.00024469,2]
[392849366,1762055441129,-500.0,0.00024469,2]
[392849367,1762055441139,-500.0,0.00024469,2]
[392849368,1762055441148,-500.0,0.00024469,2]
[392849369,1762055441158,-500.0,0.00024469,2]
[392849370,1762055441168,-500.0,0.00024469,2]
[392849371,1762055441178,-553.00779915,0.00024469,2]
[392849372,1762055441188,-500.0,0.00024469,2]
[392849373,1762055441198,-500.0,0.00024469,2]
[392849374,1762055441208,-500.0,0.00024469,2]
[392849375,1762055441218,-515.0,0.00024469,2]
[392849376,1762055441227,-500.0,0.00024469,2]
[392849377,1762055441237,-500.0,0.00024469,2]
[392849378,1762055441246,-500.0,0.00024469,2]
[392849379,1762055441256,-500.0,0.00024469,2]
[392849380,1762055441266,-500.0,0.00024469,2]
[392849381,1762055441276,-500.0,0.00024469,2]
[392849382,1762055441286,-500.0,0.00024469,2]
[392849383,1762055441295,-424.3,0.0002447,10]
[392849384,1762055441305,-50000.0,0.0002447,2]
[392849385,1762055441315,-1200.0,0.00024472,2]
[392849386,1762055441324,-500.0,0.00024473,2]
[392849387,1762055441333,-500.0,0.00024473,2]
[392849388,1762055441342,-500.0,0.00024473,2]
[392849389,1762055441351,-500.0,0.00024473,2]
[392849390,1762055441360,-574.65940348,0.00024473,2]
[392849391,1762055441370,-600.50242798,0.00024473,2]
[392849392,1762055441379,-650.77175828,0.00024479,2]
[392849393,1762055441388,-195.093974,0.0002448,7]
[392849394,1762055441398,-3840.35,0.00024481,3]
[392849395,1762055441407,-1920.17,0.00024481,3]
[392849396,1762055441416,-960.09,0.00024481,3]
[392849397,1762055441425,-480.04,0.00024481,3]
[392849398,1762055441434,-240.02,0.00024481,3]
[392849399,1762055441443,-720.09,0.00024481,3]
[392849400,1762055441453,-7680.7,0.00024482,3]
[392849401,1762055441462,-500.0,0.00024491,2]
[392849402,1762055441472,-151.0,0.00024492,7]
[392849403,1762055441481,-2804.11593884,0.00024496,2]
[392849404,1762055441491,-726.56,0.00024521,10]
[392849405,1762055441501,-151.0,0.00024531,2]
[392849406,1762055441510,-151.0,0.00024531,2]
[392849407,1762055441520,-151.0,0.00024531,2]
[392849408,1762055441533,-151.0,0.00024531,2]
[392849409,1762055441542,-151.0,0.00024531,2]
[392849410,1762055441552,-151.0,0.00024531,2]
[392849411,1762055441561,-151.0,0.00024531,2]
[392849412,1762055441571,-151.0,0.00024531,2]
[392849413,1762055441580,-151.0,0.00024531,2]
[392849414,1762055441589,-151.0,0.00024531,2]
[392849415,1762055441598,-151.0,0.00024531,2]
[392849416,1762055441607,-151.0,0.00024531,2]
[392849417,1762055441616,-151.0,0.00024531,2]
[392849418,1762055441625,-151.0,0.00024531,2]
[392849419,1762055441634,-151.0,0.00024531,2]
[392849420,1762055441644,-151.0,0.00024531,2]
[392849421,1762055441652,-151.0,0.00024531,2]
[392849422,1762055441662,-151.0,0.00024531,2]
[392849423,1762055441674,-151.0,0.00024531,2]
[392849424,1762055441683,-151.0,0.00024531,2]
[392849425,1762055441692,-2804.11593884,0.00024548,2]
[392849426,1762055441702,-163.905563,0.00024573,7]
[392849427,1762055441711,-151.0,0.00024573,2]
[392849428,1762055441720,-151.0,0.00024573,7]
[392849429,1762055441731,-240.936656,0.00024593,7]
[392849430,1762055441740,-500.0,0.00024593,2]
[392849431,1762055441752,-500.0,0.00024593,2]
[392849432,1762055441763,-500.0,0.00024593,2]
[392849433,1762055441772,-500.0,0.00024593,2]
[392849434,1762055441781,-500.0,0.00024593,2]
[392849435,1762055441790,-500.0,0.00024593,2]
[392849436,1762055441799,-500.0,0.00024593,2]
[392849437,1762055441809,-500.0,0.00024593,2]
[392849438,1762055441818,-500.0,0.00024593,2]
[392849439,1762055441827,-500.0,0.00024593,2]
[392849440,1762055441837,-500.0,0.00024593,2]
[392849441,1762055441848,-504.93755877,0.00024594,2]
[392849442,1762055441857,-234.72323939,0.00024594,2]
[392849443,1762055441866,-151.0,0.00024596,7]
[392849444,1762055441875,-175.984999,0.00024596,7]
[392849445,1762055441886,-152.128551,0.00024599,7]
[392849446,1762055441896,-2804.11593884,0.000246,2]
[392849447,1762055441907,-657.34,0.00024673,2]
[392849448,1762055441916,-502.48442456,0.00024673,2]
[392849449,1762055441925,-503.7406251,0.00024673,2]
[392849450,1762055441935,-500.90071052,0.00024673,2]
[392849451,1762055441944,-501.46973437,0.00024673,2]
[392849452,1762055441954,-503.11331673,0.00024673,2]
[392849453,1762055441963,-500.0,0.00024673,2]
[392849454,1762055441972,-500.0,0.00024673,2]
[392849455,1762055441982,-501.33075206,0.00024673,2]
[392849456,1762055441993,-500.0,0.00024673,2]
[392849457,1762055442003,-503.66522938,0.00024673,2]
[392849458,1762055442012,-500.0,0.00024673,2]
[392849459,1762055442023,-500.48277185,0.00024673,2]
[392849460,1762055442033,-501.08796728,0.00024673,2]
[392849461,1762055442043,-502.93519042,0.00024673,2]
[392849462,1762055442052,-500.0,0.00024673,2]
[392849463,1762055442062,-500.0,0.00024673,2]
[392849464,1762055442071,-500.0,0.00024673,2]
[392849465,1762055442079,-500.0,0.00024673,2]
[392849466,1762055442088,-503.44920238,0.00024673,2]
[392849467,1762055442098,-500.0,0.00024673,2]
[392849468,1762055442107,-500.0,0.00024673,2]
[392849469,1762055442116,-533.84576503,0.00024673,2]
[392849470,1762055442126,-217.65107336,0.00024673,2]
[392849471,1762055442136,-500.0,0.00024673,2]
[392849472,1762055442146,-1000.0,0.00024677,2]
[392849473,1762055442156,-1000.0,0.00024677,2]
[392849474,1762055442165,-1000.0,0.00024677,2]
[392849475,1762055442175,-1000.0,0.00024677,2]
[392849476,1762055442186,-1000.0,0.00024677,2]
[392849477,1762055442197,-1000.0,0.00024687,2]
[392849478,1762055442208,-930.06298617,0.00024687,2]
[392849479,1762055442217,-153.272946,0.0002469,7]
[392849480,1762055442227,-151.0,0.0002469,7]
[392849481,1762055442236,-151.0,0.0002469,7]
[392849482,1762055442245,-151.0,0.0002469,7]
[392849483,1762055442255,-229261.15952541,0.0002469,2]
[392849484,1762055442267,-1607.44801557,0.0002469,2]
[392849485,1762055442279,-1018.95959998,0.0002469,2]
[392849486,1762055442289,-4517.25879562,0.0002469,2]
[392849487,1762055442300,-455.18249544,0.0002469,2]
[392849488,1762055442311,-2172.22358985,0.0002469,2]
[392849489,1762055442322,-5100.70006066,0.0002469,2]
[392849490,1762055442333,-3037.6040217,0.0002469,2]
[392849491,1762055442344,-4514.97678749,0.0002469,2]
[392849492,1762055442354,-720.62718403,0.0002469,2]
[392849493,1762055442365,-425.78757059,0.0002469,2]
[392849494,1762055442376,-31026.28639901,0.0002469,2]
[392849495,1762055442498,-7134.68568673,0.0002469,2]
[392849496,1762055442513,-1010.8575363,0.0002469,2]
[392849517,1762055443535,-2293.9,0.0002469,2]
[392849518,1762055443589,-272.83182917,0.0002469,2]
[392849519,1762055443600,-2253.92377803,0.0002469,2]
[392849522,1762055446951,-1828.9342412,0.0002469,2]
[392849523,1762055451830,3000.0,0.00032877,120]
[392849524,1762055467442,236.0,0.00024141,2]
[392849528,1762055652664,276.040962,0.00013699,2]
[392849529,1762055652923,276.040962,0.00020187,2]
[392849532,1762055702089,173.24586208,0.00038012,120]
[392849640,1762056485679,281.0,0.00023769,2]
[392849643,1762056496421,281.0,0.00023892,2]
[392849644,1762056501418,281.0,0.00023784,2]
[392849646,1762056532325,1059.0175343,0.00023665,12]
[392849647,1762056532351,199.80630095,0.00023902,12]
[392849653,1762056560429,381.98308222,0.00024118,2]
[392849765,1762056631767,-281.0,0.00024218,2]
[392849766,1762056631777,-150.0,0.00024236,2]
[392849767,1762056631786,-331.36086838,0.00024253,2]
[392849768,1762056631797,-19.30617828,0.00024253,2]
[392849769,1762056631806,-1200.0,0.00024272,2]
[392849770,1762056631816,-4335.60719976,0.00024273,2]
[392849771,1762056631827,-1084.12484252,0.00024273,2]
[392849952,1762056702504,150.0,0.00019668,2]
[392849964,1762056725789,196.0,0.00023806,2]
[392850019,1762056766922,150.0,0.00019675,2]
[392850026,1762056866267,400.0,0.00037981,60]
[392850027,1762056866829,414.8,0.00037981,60]
[392850028,1762056867935,414.8,0.00037981,60]
[392850068,1762057108664,278.1230653,0.00037981,60]
[392850076,1762057151286,999.0,0.00023251,2]
[392850101,1762057290857,500.0,0.00037981,60]
[392850102,1762057291059,1595.56266525,0.00023899,2]
[392850103,1762057291785,1190.9387623,0.00023867,2]
[392850112,1762057461016,438.97412423,0.0002375,2]
[392850113,1762057463082,790.15342361,0.0002375,2]
[392850114,1762057464979,1040.25906253,0.0002375,2]
[392850115,1762057465003,364.458135,0.0002375,2]
[392850116,1762057467259,2194.87062115,0.0002375,2]
[392850117,1762057469292,3160.61369445,0.0002375,2]
[392850118,1762057473670,2297.85772305,0.00023257,2]
[392850279,1762057552321,590.16265347,0.0002375,2]
[392850288,1762057554107,1062.29277625,0.0002375,2]
[392850289,1762057555770,329.75439663,0.0002375,2]
[392850290,1762057555793,1558.76609449,0.0002375,2]
[392850291,1762057557493,4249.17110501,0.0002375,2]
[392850292,1762057559111,4192.0728005,0.0002375,2]
[392850293,1762057559132,1591.52120355,0.0002375,2]
[392850294,1762057562625,971.420273,0.00023257,2]
[392850295,1762057564696,3881.7954109,0.00023257,2]
[392850296,1762057567590,150.0,0.00023705,2]
[392850350,1762057695345,2118.64957992,0.000176,2]
[392850352,1762057704672,1286.62353263,0.00017,2]
[392850353,1762057704695,6595.24455007,0.00017,2]
[392850354,1762057705096,3404.76544993,0.00022,5]
[392850355,1762057705120,10000.01,0.00022,5]
[392850356,1762057705142,10000.01,0.00022,5]
[392850357,1762057705168,2535.21065041,0.00022,5]
[392850360,1762057718346,-214.38847511,0.00024139,2]
[392850361,1762057723941,-92.4451907,0.00024139,2]
[392850362,1762057726180,150.0,0.00020094,2]
[392850363,1762057726575,150.0,0.00021051,2]
[392850364,1762057726973,150.0,0.00022007,2]
[392850365,1762057727367,150.0,0.00022964,2]
[392850366,1762057727778,150.0,0.00023921,2]
[392850368,1762057742582,300.0,0.00024141,2]
[392850370,1762057785510,646.61032527,0.00023863,2]
[392850373,1762057796909,150.0,0.00019994,2]
[392850374,1762057797303,150.0,0.00020946,2]
[392850375,1762057797700,150.0,0.00021898,2]
[392850376,1762057798113,150.0,0.0002285,2]
[392850377,1762057798521,150.0,0.00023802,2]
[392850379,1762057802041,300.0,0.00024141,2]
[392850380,1762057802067,300.0,0.00024141,2]
[392850381,1762057805322,273.54020003,0.00031877,120]
[392850382,1762057808265,300.0,0.00024141,2]
[392850383,1762057810569,1200.0,0.00024141,2]
[392850435,1762057831852,-3494.18564119,0.00024142,2]
[392850712,1762057835114,500.0,0.00024141,2]
[392850713,1762057835141,500.0,0.00024141,2]
[392850714,1762057835167,434.68537141,0.00024141,2]
[392850715,1762057835194,500.0,0.00024141,2]
[392850716,1762057835220,626.83407205,0.00024141,2]
[392850717,1762057835246,500.0,0.00024141,2]
[392850718,1762057835277,500.0,0.00024141,2]
[392850719,1762057835307,500.0,0.00024141,2]
[392850720,1762057835337,500.0,0.00024141,2]
[392850721,1762057835364,500.0,0.00024141,2]
[392850722,1762057835391,500.0,0.00024141,2]
[392850723,1762057835417,500.0,0.00024141,2]
[392850724,1762057835445,141.88023127,0.00024141,2]
[392850725,1762057835467,358.11976873,0.00024141,2]
[392850726,1762057835494,500.0,0.00024141,2]
[392850727,1762057835520,500.0,0.00024141,2]
[392850728,1762057835546,500.0,0.00024141,2]
[392850729,1762057835572,500.0,0.00024141,2]
[392850730,1762057835598,500.0,0.00024141,2]
[392850731,1762057835626,500.0,0.00024141,2]
[392850732,1762057835651,317.39501012,0.00024141,2]
[392850733,1762057835677,500.0,0.00024141,2]
[392850734,1762057835703,513.43095743,0.00024141,2]
[392850735,1762057835729,500.0,0.00024141,2]
[392850736,1762057835755,500.0,0.00024141,2]
[392850737,1762057835781,500.0,0.00024141,2]
[392850738,1762057835808,500.0,0.00024141,2]
[392850739,1762057835834,500.0,0.00024141,2]
[392850740,1762057835859,500.0,0.00024141,2]
[392850741,1762057835886,500.0,0.00024141,2]
[392850742,1762057835913,500.0,0.00024141,2]
[392850743,1762057835939,629.36188583,0.00024141,2]
[392850744,1762057835966,500.0,0.00024141,2]
[392850745,1762057835995,181.70237789,0.00024141,2]
[392850746,1762057836017,318.29762211,0.00024141,2]
[392850747,1762057836047,500.0,0.00024141,2]
[392850748,1762057836073,500.0,0.00024141,2]
[392850749,1762057836100,500.0,0.00024141,2]
[392850750,1762057836127,500.0,0.00024141,2]
[392850751,1762057836154,500.0,0.00024141,2]
[392850752,1762057836180,500.0,0.00024141,2]
[392850753,1762057836213,500.0,0.00024141,2]
[392850754,1762057836240,500.0,0.00024141,2]
[392850755,1762057836266,500.0,0.00024141,2]
[392850756,1762057836296,500.0,0.00024141,2]
[392850757,1762057836322,500.0,0.00024141,2]
[392850758,1762057836353,500.0,0.00024141,2]
[392850759,1762057836380,500.0,0.00024141,2]
[392850760,1762057836409,500.0,0.00024141,2]
[392850761,1762057836436,500.0,0.00024141,2]
[392850762,1762057836581,500.0,0.00024141,2]
[392850763,1762057836608,500.0,0.00024141,2]
[392850764,1762057836634,500.0,0.00024141,2]
[392850765,1762057836660,500.0,0.00024141,2]
[392850766,1762057836686,181.71237789,0.00024141,2]
[392850767,1762057836707,318.28762211,0.00024141,2]
[392850768,1762057836733,500.0,0.00024141,2]
[392850769,1762057836758,500.0,0.00024141,2]
[392850770,1762057836784,500.0,0.00024141,2]
[392850771,1762057836810,500.0,0.00024141,2]
[392850772,1762057836836,500.0,0.00024141,2]
[392850773,1762057836866,274.34321333,0.00024141,2]
[392850774,1762057836893,500.0,0.00024141,2]
[392850775,1762057836927,500.0,0.00024141,2]
[392850776,1762057836953,500.0,0.00024141,2]
[392850777,1762057836980,500.0,0.00024141,2]
[392850778,1762057837019,500.0,0.00024141,2]
[392850779,1762057837046,500.0,0.00024141,2]
[392850780,1762057837078,500.0,0.00024141,2]
[392850781,1762057837111,500.0,0.00024141,2]
[392850782,1762057837139,500.0,0.00024141,2]
[392850783,1762057837168,500.0,0.00024141,2]
[392850784,1762057837204,500.0,0.00024141,2]
[392850785,1762057837232,500.0,0.00024141,2]
[392850786,1762057837264,500.0,0.00024141,2]
[392850787,1762057837292,407.37916456,0.00024141,2]
[392850788,1762057837318,92.62083544,0.00024141,2]
[392850789,1762057837355,350.0,0.00024141,2]
[392850795,1762057840013,-3552.81435881,0.00024142,2]
[392850796,1762057840024,-68601.65079824,0.00024142,2]
[392850797,1762057840034,-425.0,0.00024142,2]
[392850798,1762057840044,-783.0,0.00024153,2]
[392850799,1762057840054,-151.0,0.000242,9]
[392850800,1762057840063,-487.42,0.00024226,10]
[392850802,1762057840072,-1094.9,0.00024232,3]
[392850803,1762057840082,-547.45,0.00024232,3]
[392850805,1762057840091,-273.73,0.00024232,3]
[392850806,1762057840101,-455.54023079,0.00024235,2]
[392850807,1762057840111,-151.0,0.00024237,2]
[392850808,1762057840120,-151.0,0.00024237,2]
[392850809,1762057840130,-151.0,0.00024237,2]
[392850810,1762057840139,-151.0,0.00024237,2]
[392850811,1762057840148,-151.0,0.00024237,2]
[392850812,1762057840158,-151.0,0.00024237,2]
[392850813,1762057840167,-151.0,0.00024237,2]
[392850814,1762057840177,-151.0,0.00024237,2]
[392850815,1762057840187,-151.0,0.00024237,2]
[392850816,1762057840196,-151.0,0.00024237,2]
[392850817,1762057840205,-151.0,0.00024237,2]
[392850818,1762057840215,-151.0,0.00024237,2]
[392850819,1762057840225,-151.0,0.00024237,2]
[392850820,1762057840234,-151.0,0.00024237,2]
[392850821,1762057840243,-151.0,0.00024237,2]
[392850822,1762057840252,-151.0,0.00024237,2]
[392850823,1762057840262,-151.0,0.00024237,2]
[392850824,1762057840271,-151.0,0.00024237,2]
[392850825,1762057840281,-151.0,0.00024237,2]
[392850826,1762057840290,-151.0,0.00024237,2]
[392850827,1762057840299,-1674.36873307,0.00024237,2]
[392850841,1762057864600,150.0,0.00021665,2]
[392850842,1762057864999,150.0,0.00022697,2]
[392850843,1762057865391,150.0,0.00023728,2]
[392850848,1762057870643,500.0,0.00024141,2]
[392850849,1762057871795,500.0,0.00024141,2]
[392850850,1762057872887,500.0,0.00024141,2]
[392850851,1762057873236,500.0,0.00024141,2]
[392850852,1762057873550,500.0,0.00024141,2]
[392850853,1762057873873,500.0,0.00024141,2]
[392850854,1762057874352,500.0,0.00024141,2]
[392850855,1762057874676,500.0,0.00024141,2]
[392850856,1762057875149,500.0,0.00024141,2]
[392850857,1762057875674,500.0,0.00024141,2]
[392850858,1762057875701,500.0,0.00024141,2]
[392850859,1762057875802,500.0,0.00024141,2]
[392850860,1762057875830,500.0,0.00024141,2]
[392850861,1762057876026,500.0,0.00024141,2]
[392850862,1762057876058,500.0,0.00024141,2]
[392850863,1762057876087,500.0,0.00024141,2]
[392850864,1762057876115,500.0,0.00024141,2]
[392850865,1762057876434,500.0,0.00024141,2]
[392850866,1762057876462,107.38916456,0.00024141,2]
[392850867,1762057876484,392.61083544,0.00024141,2]
[392850868,1762057876525,482.51976389,0.00024141,2]
[392850869,1762057876703,500.0,0.00024141,2]
[392850870,1762057876730,500.0,0.00024141,2]
[392850871,1762057876760,500.0,0.00024141,2]
[392850872,1762057876787,500.0,0.00024141,2]
[392850873,1762057876818,500.0,0.00024141,2]
[392850874,1762057876845,500.0,0.00024141,2]
[392850875,1762057876872,500.0,0.00024141,2]
[392850876,1762057876899,500.0,0.00024141,2]
[392850877,1762057876927,500.0,0.00024141,2]
[392850878,1762057876959,500.0,0.00024141,2]
[392850879,1762057876991,500.0,0.00024141,2]
[392850880,1762057877020,500.0,0.00024141,2]
[392850881,1762057877052,500.0,0.00024141,2]
[392850882,1762057877081,500.0,0.00024141,2]
[392850883,1762057877109,500.0,0.00024141,2]
[392850884,1762057877136,500.0,0.00024141,2]
[392850885,1762057877164,500.0,0.00024141,2]
[392850886,1762057877192,500.0,0.00024141,2]
[392850887,1762057877220,124.87940067,0.00024141,2]
[392850888,1762057877244,375.12059933,0.00024141,2]
[392850889,1762057877274,500.0,0.00024141,2]
[392850890,1762057877303,500.0,0.00024141,2]
[392850891,1762057877331,500.0,0.00024141,2]
[392850892,1762057877362,500.0,0.00024141,2]
[392850893,1762057877389,500.0,0.00024141,2]
[392850894,1762057877417,500.0,0.00024141,2]
[392850895,1762057877446,500.0,0.00024141,2]
[392850896,1762057877475,500.0,0.00024141,2]
[392850897,1762057877503,500.0,0.00024141,2]
[392850898,1762057877531,500.0,0.00024141,2]
[392850899,1762057877567,500.0,0.00024141,2]
[392850900,1762057877594,500.0,0.00024141,2]
[392850901,1762057877623,500.0,0.00024141,2]
[392850902,1762057877651,500.0,0.00024141,2]
[392850903,1762057877683,500.0,0.00024141,2]
[392850904,1762057877711,500.0,0.00024141,2]
[392850905,1762057877740,500.0,0.00024141,2]
[392850906,1762057877771,500.0,0.00024141,2]
[392850907,1762057877799,500.0,0.00024141,2]
[392850908,1762057877826,124.88940067,0.00024141,2]
[392850909,1762057877850,375.11059933,0.00024141,2]
[392850910,1762057877877,500.0,0.00024141,2]
[392850911,1762057877906,500.0,0.00024141,2]
[392850912,1762057877934,500.0,0.00024141,2]
[392850913,1762057877963,500.0,0.00024141,2]